Cogmind - Beta 15 *** ADVENTURER MODE // 2025.06.18 @ 19:34:58 // Winter2019/RPGLIKE Player: H_ Result: Destroyed by NB-BZU(g) with Salvaging Laser Performance ------------- Evolutions (0) 0 Regions Visited (5) 1000 Robots Destroyed (86) 430 Value Destroyed (2572) 2572 Prototype IDs (30) 600 Alien Tech Used (0) 0 Bonus (763) 763 TOTAL SCORE: 5365 Bonus ------- Follower Combat Kills 14 Registered with UFD 300 Met Optimus in HQ 500 Friendly Fire -51 Cogmind --------- Core Integrity 0/750 Matter 200/300 Energy 340/340 System Corruption 1% Temperature Cool (75) Movement Walking (107) Location -7/Scraptown Parts ------- > --- POWER (1) -------- Graviton Reactor > --- PROPULSION (3+3) - Overtuned Titanium Leg (+) Flexi-carbon Leg (+) Arachnoskeleton Myomer Leg (+) > --- UTILITY (6) ------ Scrap Suit Light Humpback Armor Integrity Analyzer A0-MCA's Component Scanner > --- WEAPON (2) ------- Helical Railgun Helical Railgun > --- INVENTORY (23) --- Protomatter-60 Protomatter-44 Protomatter-38 Humpback Deep Structural Scanner Active Sensor Suite Surveybot 17 Chip Advanced Weapon Cycler Scrap Shield Makeshift Hacking Suite System Restoration Module Scrapoid Pod Heavy Battle Rifle Heavy Battle Rifle CPS Tube (2) Large Botcube PL-3XN's Ring of Power Peak State ------------ > --- POWER ------------ Graviton Reactor > --- PROPULSION ------- Overtuned Titanium Leg Flexi-carbon Leg Arachnoskeleton Myomer Leg > --- UTILITY ---------- Scrap Suit Light Humpback Armor Integrity Analyzer A0-MCA's Component Scanner > --- WEAPON ----------- Helical Railgun Helical Railgun > --- INVENTORY -------- Protomatter Humpback Deep Structural Scanner Active Sensor Suite Surveybot 17 Chip Advanced Weapon Cycler Scrap Shield Makeshift Hacking Suite System Restoration Module Scrapoid Pod Heavy Battle Rifle Heavy Battle Rifle CPS Tube Large Botcube PL-3XN's Ring of Power [Rating: 97] Favorites ----------- Power Improved Deuterium Engine Engine Improved Deuterium Engine Reactor Graviton Reactor Propulsion Compact Wheel Treads Spiked Treads Leg Arachnoskeleton Wheel Compact Wheel Hover Unit Combat Airjet Utility Signal Interpreter Device Improved Terrain Scanner Storage Light Humpback Processor Signal Interpreter Protection Scrap Shield Weapon Subdweller Machine Gun Energy Gun Subdweller Laser Ballistic Gun Subdweller Machine Gun Launcher Mini Grenade Launcher Special Weapon Multitool Impact Weapon Makeshift Hammer Slashing Weapon Greatsword Build | -11 -10 -10 -10 -7 -7 ------- Run | Yrd Mat Min Sub Rec Scr Slots Evolved 8 | 3 . 1 . 3 1 Power . | . . . . . . Propulsion 2 | 1 . . . 1 . Utility 5 | 1 . 1 . 2 1 Weapon 1 | 1 . . . . . Parts Attached 65 | 6 9 7 25 6 12 Power 11 | 1 2 1 5 1 1 Engine 10 | 1 2 1 5 1 . Core . | . . . . . . Reactor 1 | . . . . . 1 Propulsion 20 | 2 1 3 10 2 2 Treads 1 | . . . 1 . . Leg 4 | . . . . 2 2 Wheel 14 | 2 1 2 9 . . Hover 1 | . . 1 . . . Flight . | . . . . . . Utility 15 | 2 3 1 2 2 5 Device 7 | 2 2 1 . . 2 Storage 2 | . . . 1 1 . Processor 3 | . 1 . . . 2 Hackware . | . . . . . . Protection 3 | . . . 1 1 1 Artifact . | . . . . . . Weapon 19 | 1 3 2 8 1 4 Energy Gun 2 | 1 . 1 . . . Energy Cannon . | . . . . . . Ballistic Gun 10 | . 2 . 6 . 2 Ballistic Cannon . | . . . . . . Launcher 1 | . . 1 . . . Special Weapon 3 | . . . 1 . 2 Impact Weapon 1 | . . . 1 . . Slashing Weapon 2 | . 1 . . 1 . Piercing Weapon . | . . . . . . Special Melee Weapon . | . . . . . . Unidentified Prototypes . | . . . . . . Parts Lost . | . . . . . . Power . | . . . . . . Propulsion . | . . . . . . Utility . | . . . . . . Weapon . | . . . . . . Highest Loss Streak . | . . . . . . To Critical Strikes . | . . . . . . Average Backups 10 | . 1 2 13 11 12 Power . | . . . 1 . . Propulsion 1 | . . . 2 . . Utility 3 | . . . 3 4 6 Weapon 3 | . 1 1 5 4 3 Tool/Special . | . . . . . . Unused Backups 18 | . 2 2 2 1 11 Power 1 | . . . . 1 . Propulsion . | . . . . . . Utility 7 | . . 1 . . 6 Weapon 6 | . 2 . 2 . 2 Tool/Special 4 | . . 1 . . 3 Average Slot Usage (%) 76 | . 95 97 81 51 60 Engine 8 | . 13 12 7 7 5 Leg 7 | . . . . 13 21 Wheel 15 | . 27 25 24 . . Device 7 | . 25 21 . . 4 Storage 6 | . . . 11 7 6 Processor 9 | . 1 12 12 7 7 Protection 1 | . . . . 6 3 Energy Gun 1 | . 1 7 2 . . Ballistic Gun 13 | . 24 15 20 2 2 Slashing Weapon 2 | . . . . 6 4 Peak Build Rating 97 | 8 14 18 22 51 97 Average Rating 31 | 5 10 13 16 48 62 On Entrance 17 | . 8 12 15 21 51 Naked Turns . | . . . . . . Heaviest Build 74 | 7 14 14 53 73 74 Greatest Support 119 | 37 41 37 45 80 119 Greatest Overweight (x) 2 | . . . 2 1 . Average Overweight (x) . | . . . . . . Largest Inventory Capacity 33 | 2 3 3 23 33 23 Average Capacity 17 | 2 2 3 22 23 23 Most Carried 23 | 2 3 3 23 17 23 Average Carried 11 | . 1 2 14 13 15 Final Capacity 23 | 2 3 3 23 23 23 Final Carried 23 | . 3 3 17 13 23 Class Distribution -------------------- 46% | Hauler-Mutant 29% | Hauler-Gladiator 12% | Hacker-Mutant 10% | Hacker-Skirmisher Dominant Class ---------------- Hacker-Mutant | -10/Materials Hacker-Skirmisher | -10/Mines Hauler-Mutant | -10/Subcaves Hauler-Gladiator | -7/Recycling Hauler-Gladiator | -7/Scraptown Resources | -11 -10 -10 -10 -7 -7 ----------- Run | Yrd Mat Min Sub Rec Scr Matter Collected 2282 | 250 468 296 586 80 602 Remotely . | . . . . . . Salvage Created 2577 | 115 477 303 304 103 1275 Parts 216 | 3 48 18 45 13 89 Haulers Intercepted . | . . . . . . Recyclers Shooed . | . . . . . . Parts Field Recycled . | . . . . . . Retrieved Matter . | . . . . . . Parts Self-Destructed 12 | . . . 12 . . Prevented . | . . . . . . Kills | -11 -10 -10 -10 -7 -7 ------- Run | Yrd Mat Min Sub Rec Scr Combat Hostiles Destroyed 75 | . 19 7 16 4 29 Melee 5 | . . . 1 4 . Guns 70 | . 19 7 15 . 29 Classes Destroyed 15 | 2 5 1 1 1 5 Worker 3 | . 2 1 . . . Tunneler 1 | 1 . . . . . Recycler 2 | 1 . 1 . . . Turret 2 | . . . 2 . . Watcher 3 | . 3 . . . . Swarmer 22 | . 12 4 6 . . Grunt 4 | . 4 . . . . Sentry 4 | . . . . 4 . Demolisher 2 | . . 2 . . . Subdweller 13 | . 3 . 10 . . Federalist 7 | . . . . . 7 Explorer 4 | . . . . . 4 Guru 4 | . . . . . 4 Scrapper 11 | . . . . . 11 Thug 1 | . . . . . 1 Mutant 2 | . . . . . 2 Best Kill Streak 14 | 2 4 2 5 1 14 Combat Bots Only 14 | . 3 2 3 1 14 Max Kills in Single Turn 2 | 1 2 2 2 1 2 Gunslinging 1 | . 1 1 1 . . Exploded . | . . . . . . Melee 1 | . . . 1 1 . Uniques/NPCs Destroyed 1 | . . 1 . . . YI-UF0 (-10/Mines) Combat | -11 -10 -10 -10 -7 -7 -------- Run | Yrd Mat Min Sub Rec Scr Hostile Shots Fired 483 | . 84 48 102 45 204 Missed 141 | . 19 9 33 16 64 Hits 342 | . 65 39 69 29 140 Melee 3 | . . 3 . . . Projectile 339 | . 65 36 69 29 140 AOE 30 | . . 26 4 . . Critical Strikes 8 | . . 1 2 . 5 Part Disruptions 1 | . . . . . 1 Damage Taken 4281 | . 603 871 1062 168 1577 Core 3410 | . 498 728 873 88 1223 Absorbed by Shields . | . . . . . . Redirected to Core 2587 | . 336 449 612 67 1123 Ignored by Resistances 1201 | . 185 242 267 60 447 Core Remaining (%) 100 | 100 . . . . . Volleys Fired 203 | 4 41 27 64 . 67 Largest 2 | 1 2 2 2 . 2 Hottest 90 | 40 46 83 90 . 76 Shots Fired 391 | 4 77 50 126 . 134 Gun 387 | 4 77 50 126 . 130 Cannon . | . . . . . . Launcher . | . . . . . . Special 4 | . . . . . 4 Kinetic 352 | . 72 44 106 . 130 Thermal 26 | . . 6 20 . . Explosive . | . . . . . . Electromagnetic 9 | 4 5 . . . . Robot Hit Streak 23 | 4 10 7 23 . 20 Robot Miss Streak 4 | . 3 3 2 . 4 Penetration Max 1 | . . . . . 1 Secondary Targets 18 | . 7 1 3 . 7 Max Gunslinging Chain 1 | . 1 1 1 . 1 Shots Hit Robots 259 | 4 54 30 68 9 94 Core Hits 122 | 2 28 17 33 5 37 Critical Kills 4 | . . . 1 . 3 Critical Parts Destroyed 7 | . 1 . 1 . 5 Critical Strikes 13 | . 1 . 2 2 8 Destroy 10 | . 1 . 1 . 8 Smash 1 | . . . 1 . . Sever 2 | . . . . 2 . Melee Attacks 17 | . 1 . 7 9 . Impact 2 | . . . 2 . . Slashing 15 | . 1 . 5 9 . Piercing . | . . . . . . Sneak Attacks 4 | . . . . 4 . Combat Hostiles 4 | . . . . 4 . Follow-up Attacks . | . . . . . . Damage Inflicted 5963 | 54 852 490 1586 535 2446 Guns 5097 | 54 852 490 1255 . 2446 Cannons . | . . . . . . Explosions . | . . . . . . Melee 866 | . . . 331 535 . Ramming . | . . . . . . Kinetic 4913 | . 806 428 1233 . 2446 Thermal 84 | . . 62 22 . . Explosive . | . . . . . . Electromagnetic 100 | 54 46 . . . . Impact 95 | . . . 95 . . Slashing 771 | . . . 236 535 . Piercing . | . . . . . . Highest Corruption 1 | . . . . . 1 Average Corruption 1 | . . . . . 1 Corruption Purged . | . . . . . . Corruption Blocked . | . . . . . . Effects 2 | . . . . . 2 Data Loss (minor) 2 | . . . . . 2 Overload Shots . | . . . . . . Overflow Damage 9 | . . . . 9 . Projectiles . | . . . . . . Explosions . | . . . . . . Melee 9 | . . . . 9 . Knockbacks . | . . . . . . Impact . | . . . . . . Kinetic . | . . . . . . Secondary . | . . . . . . Self-Inflicted Damage . | . . . . . . Shots . | . . . . . . Rammed . | . . . . . . Targets Rammed . | . . . . . . Kicked . | . . . . . . Crushed . | . . . . . . Highest Temperature 54 | 8 3 . . . 54 Average Temperature 25 | 8 3 . . . 30 Received Heat Transfer 1459 | . 135 . 189 72 1063 Siege Activations . | . . . . . . Martial Activations . | . . . . . . Shielding Activations . | . . . . . . Robots Disrupted . | . . . . . . Combat Hostiles . | . . . . . . Robots Corrupted . | . . . . . . Combat Hostiles . | . . . . . . Parts Fried . | . . . . . . Impact Corruptions . | . . . . . . Robots Melted . | . . . . . . Combat Hostiles . | . . . . . . Parts Melted 7 | . 1 . . . 6 Heat Transferred 100 | . . 75 25 . . Parts Sabotaged . | . . . . . . Parts Stolen . | . . . . . . Parts Stripped . | . . . . . . Power Chain Reactions . | . . . . . . Alert | -11 -10 -10 -10 -7 -7 ------- Run | Yrd Mat Min Sub Rec Scr Maximum Alert Level 1 | . 1 . . . . Low Security (%) 93 | 100 82 100 . 100 . Level 1 6 | . 17 . . . . Level 2 . | . . . . . . Level 3 . | . . . . . . Level 4 . | . . . . . . Level 5 . | . . . . . . High Security . | . . . . . . Max Security . | . . . . . . Peak Influence 251 | 5 251 74 . 50 . Initial 29 | . . 29 . . . Average 48 | 1 105 13 . 9 . Influence Increases 1101 | 10 534 205 200 152 . Destroy 0b10 Robot/C 720 | . 320 160 160 80 . Destroy 0b10 Robot/NC 45 | 10 25 10 . . . Destroy Leader 106 | . 66 30 10 . . Allied During Kill 5 | . . 5 . . . Successful Hack 36 | . 24 . . 12 . Select Force Hacks 120 | . 60 . . 60 . Disable Machine 9 | . 9 . . . . Lose Combat Pursuer 60 | . 30 . 30 . . Influence Decreases 1101 | 10 443 296 200 152 . Entered New Map 62 | . . 62 . . . Time Decay 1005 | 10 443 200 200 152 . Lost Ally 34 | . . 34 . . . Squads Dispatched 2 | . 2 . . . . Investigation 2 | . 2 . . . . Extermination . | . . . . . . Reinforcement . | . . . . . . Assault . | . . . . . . Garrison . | . . . . . . Intercept . | . . . . . . Searches Triggered . | . . . . . . Construction Impeded . | . . . . . . Haulers Reinforced . | . . . . . . Active Scanning Responses . | . . . . . . Cargo Convoy Interrupts . | . . . . . . Stealth | -11 -10 -10 -10 -7 -7 --------- Run | Yrd Mat Min Sub Rec Scr Distress Signals . | . . . . . . Communications Jammed . | . . . . . . Distress Signals . | . . . . . . Times Spotted 119 | . 24 12 35 2 46 Peak Tracking Total 8 | . 3 5 7 1 8 Tactical Retreats 4 | . 2 1 1 . . Traps | -11 -10 -10 -10 -7 -7 ------- Run | Yrd Mat Min Sub Rec Scr Traps Triggered 7 | . 2 . 5 . . Indirectly . | . . . . . . Trap Hack Attempts . | . . . . . . Triggered . | . . . . . . Disarmed . | . . . . . . Reprogrammed . | . . . . . . Reused . | . . . . . . Traps Extracted . | . . . . . . Installed 2 | . . . 2 . . Triggered . | . . . . . . Machines | -11 -10 -10 -10 -7 -7 ---------- Run | Yrd Mat Min Sub Rec Scr Machines Disabled 6 | . 1 . 1 . 4 Max in Single Turn 2 | . 1 . 1 . 2 Machines Repaired . | . . . . . . Machines Dismantled . | . . . . . . Machines Sabotaged . | . . . . . . Overloaded Fab Kills . | . . . . . . Hacking | -11 -10 -10 -10 -7 -7 --------- Run | Yrd Mat Min Sub Rec Scr Machines Accessed 33 | . 10 . 3 11 9 Terminals 14 | . 8 . . 6 . Fabricators . | . . . . . . Repair Stations . | . . . . . . Recycling Units 5 | . 2 . . 3 . Scanalyzers . | . . . . . . Garrison Access . | . . . . . . Total Hacks 191 | . 42 . 12 65 72 Successful 169 | . 31 . 12 54 72 Failed 22 | . 11 . . 11 . Catastrophic 2 | . 2 . . . . Database Lockouts . | . . . . . . Manual 55 | . 24 . 2 29 . Terminals 58 | . 32 . . 26 . Fabricators . | . . . . . . Repair Stations . | . . . . . . Recycling Units 24 | . 10 . . 14 . Scanalyzers . | . . . . . . Garrison Access . | . . . . . . Terminal Hacks 130 | . 13 . 12 33 72 Record 105 | . . . 9 24 72 Robot Analysis 2 | . 2 . . . . Prototype ID Bank 4 | . 3 . . 1 . Open Door 1 | . . . 1 . . Branch Access Points 1 | . . . . 1 . Terminal Index 1 | . . . . 1 . Recycling Unit Index 1 | . . . . 1 . Locate Traps 3 | . 3 . . . . Dispatch Records 1 | . . . . 1 . Maintenance Status 1 | . 1 . . . . Transport Status 2 | . 1 . . 1 . Registered Prototypes 1 | . . . . 1 . Zone Layout 4 | . 3 . . 1 . Proto ID Catalog 1 | . . . 1 . . Release Object 2 | . . . 1 1 . Fabricator Hacks . | . . . . . . Repair Station Hacks . | . . . . . . Recycling Unit Hacks 6 | . 2 . . 4 . Report Inventory 1 | . . . . 1 . Retrieve Components 5 | . 2 . . 3 . Scanalyzer . | . . . . . . Garrison Access Hacks . | . . . . . . Unauthorized Hacks 33 | . 16 . . 17 . Terminals 20 | . 12 . . 8 . Track 1 | . 1 . . . . Botnet 10 | . 5 . . 5 . Skim 9 | . 6 . . 3 . Fabricators . | . . . . . . Repair Stations . | . . . . . . Recycling Units 13 | . 4 . . 9 . Monitor 1 | . . . . 1 . Reject 2 | . . . . 2 . Recyclers 3 | . 1 . . 2 . Mask 3 | . 1 . . 2 . Tunnel 4 | . 2 . . 2 . Scanalyzers . | . . . . . . Garrison Access . | . . . . . . Data Cores Recovered . | . . . . . . Used . | . . . . . . Hacking Detections 17 | . 10 . . 7 . Full Trace Events 1 | . 1 . . . . Feedback Events . | . . . . . . Feedback Blocked . | . . . . . . Robot Schematics Acquired . | . . . . . . Robots Built . | . . . . . . Authchips . | . . . . . . Time . | . . . . . . Total Robot Build Rating . | . . . . . . Part Schematics Acquired . | . . . . . . Parts Built . | . . . . . . Authchips . | . . . . . . Time . | . . . . . . Total Part Build Rating . | . . . . . . Parts Repaired . | . . . . . . Time . | . . . . . . Parts Recycled . | . . . . . . Recycled Matter . | . . . . . . Retrieved Matter . | . . . . . . Retrieved Components 27 | . 13 . . 14 . Parts Scanalyzed . | . . . . . . Part Schematics Acquired . | . . . . . . Parts Damaged . | . . . . . . Bothacking | -11 -10 -10 -10 -7 -7 ------------ Run | Yrd Mat Min Sub Rec Scr Used RIF Installer . | . . . . . . Robots Hacked . | . . . . . . Non-combat . | . . . . . . Combat . | . . . . . . Robot Hacks Applied . | . . . . . . Relay Couplers Released . | . . . . . . Fabnet Peak Effective % . | . . . . . . Robots Rewired . | . . . . . . Allies Hacked . | . . . . . . Hacks Repelled . | . . . . . . Allies | -11 -10 -10 -10 -7 -7 -------- Run | Yrd Mat Min Sub Rec Scr Total Allies 4 | . . 4 . . . Largest Group 3 | . . 3 . . . Highest-Rated Group 40 | . . 40 . . . Highest-Rated Ally 31 | . . 31 . . . Total Orders 1 | . . 1 . . . AID 1 | . . 1 . . . Ally Attacks 6 | . . 6 . . . Total Damage 70 | . . 70 . . . Kills 2 | . . 2 . . . Allies Corrupted . | . . . . . . Allies Melted 9 | . . . . . 9 Intel | -11 -10 -10 -10 -7 -7 ------- Run | Yrd Mat Min Sub Rec Scr Active Infowar (turns) 3650 | 36 1146 1027 98 . 1343 Optics 173 | . 173 . . . . Terrain 2297 | 36 1069 1027 96 . 69 Structural 2118 | . . 749 95 . 1274 Seismic 894 | 24 870 . . . . Robot Analysis Total 2 | . 2 . . . . Derelict Logs Recovered 5 | . . 2 2 . 1 Drone Launches . | . . . . . . Drone Recoveries . | . . . . . . Exploration | -11 -10 -10 -10 -7 -7 ------------- Run | Yrd Mat Min Sub Rec Scr Turns Passed 9497 | 63 1155 1027 3717 693 2842 Spaces Moved 7505 | 48 954 894 2755 594 2260 Core 6 | 6 . . . . . Treads . | . . . . . . Legs 2853 | . . . . 593 2260 Wheels 4646 | 42 954 894 2755 1 . Hover . | . . . . . . Flight . | . . . . . . Fastest Speed 50 | 50 100 100 100 105 105 Average Speed 110 | 93 100 100 118 105 109 Slowest Speed 130 | 100 105 100 130 115 113 Overloaded Moves . | . . . . . . Propulsion Burnouts . | . . . . . . Robots Hopped . | . . . . . . Potential Cave-ins 3 | . . 3 . . . Cave-ins Triggered . | . . . . . . Exploration Rate (%) 77 | 3 98 100 98 75 93 Regions Visited 5 Branch Regions 4 Pre-discovered Areas 9 | . 3 1 2 2 1 Known Exits Taken 4 | . 1 1 1 1 . Unknown Exits Taken 1 | 1 . . . . . Scrap Searched 17 | . . 1 13 . 3 Spaces Dug . | . . . . . . Terrain Destroyed 31 | . . . 1 . 30 Melee . | . . . . . . Projectile 31 | . . . 1 . 30 AOE . | . . . . . . Terrain Rammed . | . . . . . . Walls Destroyed . | . . . . . . Machines Disabled . | . . . . . . Actions | -11 -10 -10 -10 -7 -7 --------- Run | Yrd Mat Min Sub Rec Scr Total 8349 | 61 1086 988 3074 648 2492 Wait 179 | . 19 21 69 . 70 Move 7500 | 47 953 893 2754 593 2260 Hop . | . . . . . . Pick Up 94 | 4 13 6 39 5 27 Fast Attach 16 | 2 6 4 4 . . Attach 44 | 4 6 3 14 6 11 Detach 8 | . . 1 2 3 2 Swap 38 | . 5 5 19 2 7 Drop 79 | . 14 11 34 6 14 Fire 203 | 4 41 27 64 . 67 Melee 17 | . 1 . 7 9 . Ram . | . . . . . . Kick . | . . . . . . Crush . | . . . . . . Escape Stasis . | . . . . . . Rewire 1 | . . . . 1 . Trap 2 | . . . 2 . . Miscellaneous 168 | . 28 17 66 23 34 Route ------- -11/Scrapyard -10/Materials (discovered 6 exits: *Mat x3 / *Min x2 / *Sub) -10/Mines (discovered 4 exits: *Mat x2 / *Exi / *Sub) -10/Subcaves (discovered 3 exits: *Mat x2 / *Rec) -7/Recycling -7/Scraptown (discovered 2 exits: *Fac x2) History --------- Turn | Location | Event 1 | -11/Scrapyard | Upgraded with Propulsion slot (x1) 1 | -11/Scrapyard | Upgraded with Utility slot (x1) 1 | -11/Scrapyard | Upgraded with Weapon slot (x1) 6 | -11/Scrapyard | Discovered new exit (range 15) 64 | -11/Scrapyard | Entered Materials 123 | -10/Materials | Discovered new exit (range 16) 158 | -10/Materials | Discovered new exit (range 13) 305 | -10/Materials | Build established: Hacker-Mutant 452 | -10/Materials | Discovered new exit (range 3) 556 | -10/Materials | Discovered new exit (range 11) 593 | -10/Materials | Discovered new exit (range 4) 653 | -10/Materials | Identified exit to Subcaves 782 | -10/Materials | Learned Storage security intel 783 | -10/Materials | Reached level 2 831 | -10/Materials | Learned location of Mines (-10) 864 | -10/Materials | Derelicts attacked the area 917 | -10/Materials | Learned location of 2 exits from Materials 1128 | -10/Materials | Identified exit to Materials 1193 | -10/Materials | Identified exit to Mines 1219 | -10/Materials | Entered Mines 1266 | -10/Mines | Assisted by bots powering up and referring to "LRC-V3" 1298 | -10/Mines | Discovered new exit (range 13) 1303 | -10/Mines | Reached level 3 1306 | -10/Mines | Upgraded with Utility slot (x1) 1316 | -10/Mines | Deemed a non-threat by the Exiles lab entrance 1319 | -10/Mines | Identified exit to Exiles 1375 | -10/Mines | Learned Materials terminal intel 1402 | -10/Mines | Discovered exit to Subcaves (range 13) 1414 | -10/Mines | Core integrity fell below 50% 1415 | -10/Mines | Destroyed YI-UF0 1422 | -10/Mines | Lost 3 allies 1432 | -10/Mines | Assembled infested the area 1463 | -10/Mines | Met 8R-AWN 1578 | -10/Mines | Core integrity fell below 20% 1794 | -10/Mines | Build established: Hacker-Skirmisher 1824 | -10/Mines | Learned location of Zion (-6) 1900 | -10/Mines | Received a Mining Laser from a helpful Derelict 1954 | -10/Mines | A weapon hastily lodged in a ceiling crevice suddenly fell to the ground 1979 | -10/Mines | Received a Rocket Launcher from a helpful Derelict 2246 | -10/Mines | Entered Subcaves 2247 | -10/Subcaves | Approached by a straggling Scientist 2247 | -10/Subcaves | Identified exit to Recycling 2248 | -10/Subcaves | Reached level 4 2393 | -10/Subcaves | Ambushed by swarm of Subdwellers 2462 | -10/Subcaves | Lost 3 allies 2610 | -10/Subcaves | Discovered new exit (range 8) 2618 | -10/Subcaves | Identified exit to Materials 2625 | -10/Subcaves | Discovered exit to Materials (range 15) 2666 | -10/Subcaves | Build established: Hauler-Mutant 2837 | -10/Subcaves | Shifting Twisted Machinery released Sub. Monowheel 2877 | -10/Subcaves | Shifting Twisted Machinery released Sub. Machine Gun 2940 | -10/Subcaves | Shifting Twisted Machinery released Sub. Optics 2987 | -10/Subcaves | Ambushed by Subdwellers from Twisted Machinery 3187 | -10/Subcaves | Met a Zionite searching for "candidates" 3332 | -10/Subcaves | Shifting Twisted Machinery released Spk. Treads 3597 | -10/Subcaves | Shifting Twisted Machinery released Enh. Flamer 3728 | -10/Subcaves | A swath of the cavern ceiling suddenly collapsed 3945 | -10/Subcaves | Visited 4L-MR0's lab 4027 | -10/Subcaves | Found Arachnoskeleton 4200 | -10/Subcaves | Disturbed a concealed Subdweller 5013 | -10/Subcaves | Released subatomizers from SUBCON Basin 5075 | -10/Subcaves | Shifting Twisted Machinery released Scrap Shield 5963 | -10/Subcaves | Entered Recycling 5964 | -7/Recycling | Met a Zionite searching for Scraptown 5965 | -7/Recycling | Reached level 5 5965 | -7/Recycling | Reached level 6 5965 | -7/Recycling | Reached level 7 5965 | -7/Recycling | Upgraded with Propulsion slot (x1) 5965 | -7/Recycling | Upgraded with Utility slot (x2) 5967 | -7/Recycling | Attached Arachnoskeleton, gained temporary slots: Propulsion x3 5990 | -7/Recycling | Reached level 8 6344 | -7/Recycling | Scanned before Scraplab entrance 6359 | -7/Recycling | Entered Scraplab 6373 | -7/Recycling | Discovered new exit (range 3) 6375 | -7/Recycling | Identified exit to Scraptown 6490 | -7/Recycling | Build established: Hauler-Gladiator 6656 | -7/Recycling | Entered Scraptown 6658 | -7/Scraptown | Reached level 9 6658 | -7/Scraptown | Upgraded with Utility slot (x1) 6700 | -7/Scraptown | Learned location of Extension (-4) 6929 | -7/Scraptown | Scanned Subdweller tech in exchange for log data 6933 | -7/Scraptown | Learned Factory non-interactive machine intel 6966 | -7/Scraptown | Discovered new exit (range 5) 6971 | -7/Scraptown | Identified exit to Factory 7095 | -7/Scraptown | Visited Cave Peace 7143 | -7/Scraptown | Visited UFD Registry 7156 | -7/Scraptown | Visited Fellowship of the Rings 7205 | -7/Scraptown | Visited Red Mages 7265 | -7/Scraptown | Visited The Evicted 7879 | -7/Scraptown | Visited Cyclists 7912 | -7/Scraptown | Visited Spacefarers 8029 | -7/Scraptown | Registered with UFD as "Nukehead" 8077 | -7/Scraptown | Entered Cyclist Reading Room 8224 | -7/Scraptown | Visited Scrapoid Research Area 8282 | -7/Scraptown | Visited Cartography Club 8311 | -7/Scraptown | Found Surveybot 17 Chip 8474 | -7/Scraptown | Visited Science Testing Area 8503 | -7/Scraptown | Visited Scrap Suit Storage 8515 | -7/Scraptown | Found Scrap Suit 8650 | -7/Scraptown | Discovered exit to Factory (range 5) 8689 | -7/Scraptown | Visited Botcube Research 8697 | -7/Scraptown | Found Lrg. Botcube 8718 | -7/Scraptown | Visited A0-MCA Data Center 8724 | -7/Scraptown | Given a B- rating by A0-MCA 8727 | -7/Scraptown | Found A0-MCA's Component Scanner 8769 | -7/Scraptown | Met Optimus 8769 | -7/Scraptown | Accepted into 0bPrime 8834 | -7/Scraptown | Visited Supply Room 8857 | -7/Scraptown | Visited Scrapoid Pod Storage 8862 | -7/Scraptown | Found Scrapoid Pod 8883 | -7/Scraptown | Visited Observation Area 8920 | -7/Scraptown | Civil war broke out across Scraptown 8928 | -7/Scraptown | Visited Infowarlord's Domain 9216 | -7/Scraptown | Optimus destroyed in the chaos of civil war 9255 | -7/Scraptown | Build established: Hauler-Mutant 9268 | -7/Scraptown | Found Deep Structural Scanner 9274 | -7/Scraptown | Found PL-3XN's Ring of Power 9343 | -7/Scraptown | Found Active Sensor Suite 9451 | -7/Scraptown | Lost 13 allies 9459 | -7/Scraptown | Destroyed 14 combat bots 9498 | -7/Scraptown | Destroyed by NB-BZU(g) with Salvaging Laser Last Messages --------------- 09475_ Dropped Protomatter-37. 09476_ System corrupted: Component data lost. 09480_ Acquired Protomatter-60. 09481_ Slug penetrates NB-BZU(g). 09481_ Slug penetrates Earth. 09483_ Bolt penetrates Wall. 09483_ Penetrated by Bolt. 09484_ Slug penetrates Wall. 09485_ Penetrated by Bolt. 09487_ Slug penetrates OZ-NY3(p). 09487_ OZ-NY3(p) destroyed. 09487_ Switching to secondary target: NB-BZU(g). 09488_ Penetrated by Bolt. 09490_ NB-BZU(g) suffers critical hit (Destroy). 09490_ Destroyed Salvaging Laser. 09492_ Critical hit (Burn: +50). 09495_ Penetrated by Bolt. 09495_ Bolt penetrates PA-RY7(j). 09496_ Slug penetrates W0-9OU(j). 09497_ Bolt penetrates XX-YGI(g). Map ----- +----------------------------------------------------+ | ##?????????????? | | ######## ##########"" """"######?????????????? | | ######### ###########" ![%"######?????????????? | | ""####### ###########" ]!""##?????????????????? | | ### """"""""###" """##?????????????????? | | "### ### " ""###" """##?????????????????? | | "#"" """ "###"""""""##?????????????????? | | ""#" """ " ""############???????### ?????? | | ###" " """"""""##########?????????###### #??? | | ""#" ##"""#####?????????????????## #####??? | | "#" "" " ##########?????###########?## # # ??? | | "#" " #############??# #?## # ## ##? | | "#"""""" ##??# #??# #?## ### ? | | ""####### ##??# "" "" #??# #?## ####X# ? | | ######### ###? ""X"" #??# #?## ##=####? | | ######### ###;# """"" #??# #?## ==# | | ? ###; "%!#??# #?#######!%## | | ? ###; [%=#??# * #?## /=%= | | ######### ##?; g =!=#??# =![!!*[#?## !% | | ######## ##### %%[!####*=!%=%= =############# | | ######### ######;;;=!*!##%*[%[=#!;############## | | """ # ! jg !=%%[%!%=!/![=%%%* ##?????##""" | | """ # = *==*!=%!%=%%%==*= ##?????##" | | """ # =h[!j[ ![=!!=[=%!=%[=%=! ##?????## | | " " !=g!! [!=!!=!!!/=[[%* ##?????##" = | | ?# =!%[j= =!=%[@!=[!=![!*= ##??#####" | | "" # ########;;#;!;##=![*!!!= ##?######" | | " # #################%=!!%*%% ##?##"""" | | "" # ############?####=*=! !!!!##?##""""*%% | | # #################%%[ *%##?##""""!= | | " # ############### #==% =!%##?##""""% | | """"" # ##########?#### = *%! !=%=#####"""" | | """"""# ###""#""#""""###"!=!=/[!=%###"#"""" | | ####### ### X "# """#### ! ! !%=!""#"#"""" | | ?????## ###X "#" "?####= !=! !!*""""#"""" ! | | ####### ### #""""###" / [!*[!!""######" [ | | """"""# ###"#?#"#""""# " !%!![=[!########" ! | | " ""# ##### ######### " ==%====%#########" | | # ###" "###" !!%=%!!!%[!==!!! | | # ###" X###" [%=%%=![%=%[%%%! = | | # ###" "####!*%!=[!==!=![!*!* ! | | "" # ### ? ####[[=*=*[!!!!*!=[[! ! | | # !####%########## %!!!%!!!%%=[!!=!%= * | | # =%== ! ? =[[===[%=!=*[=!%=%[*=[%!* [ | | """ %!! != !%%%?=!%==%[=[*![[!!!!%![ = | | """"""# = *%%=*! =*%****=![*=!!!=!==/%!!==[ | | ####### !!%!!!%[! * =%=%=%%=%!=[]!%=%[!*/ = | | ####### =*![=&%=[%[ /!=!/%=!!!**!!%!=%!=%%! | | # !!![!!![=!* ![!!==!!!=!!=!!%[#""""#" | | *%%[[[%![! =* ![=====**%#"??"#" | +----------------------------------------------------+ Best States ------------- Heat Dissipation 61 Energy Generation 34 Energy Capacity 340 Matter Stores 300 Matter Capacity 300 Sight Range 21 Robot Scan Range 22 Terrain Scan Range 16 Terrain Scan Density 310 Armor Coverage 800 Resistance: KI 20 Resistance: TH 20 Resistance: EX 20 Resistance: EM 20 Resistance: I 20 Resistance: S 20 Resistance: P 20 Evasion (%) 55 Armor Integrity Analysis 30 Offensive Hacking 35 Defensive Hacking 10 Item Schematics ----------------- None Robot Schematics ------------------ None Fabricated ------------ Nothing Repaired ---------- Nothing Alien Tech Used ----------------- None Achievements -------------- None Challenges ------------ None RPGLIKE | -11 -10 -10 -10 -7 -7 --------- Run | Yrd Mat Min Sub Rec Scr Levels Raised 8 | . 1 1 1 4 1 XP Earned 17099 | 4000 2325 1456 1850 6107 1361 XP Spent 16000 | 3970 1530 1495 1475 5480 2050 Upgrades 44 | 12 9 7 4 9 3 Propulsion Slot 2 | 1 . . . 1 . Utility Slot 5 | 1 . 1 . 2 1 Weapon Slot 1 | 1 . . . . . Core Integrity 3 | . . 2 1 . . Heat Dissipation 6 | 2 1 1 1 . 1 Energy Generation 1 | 1 . . . . . Mass Support 1 | 1 . . . . . Inventory Capacity 3 | 2 1 . . . . Sensor Range 11 | . 4 3 . 4 . Terrain Scan Density 3 | . 2 . . 1 . Melee Accuracy 1 | . . . . . 1 Hack Attack % 5 | 3 . . 1 1 . Hack Defense % 2 | . 1 . 1 . . Protomatter Created 1351 | . 186 46 424 188 507 Integrity Restored 3468 | . 518 303 1406 504 737 Core 2659 | . 440 303 1227 217 472 Parts 809 | . 78 . 179 287 265 Protomatter Decayed 8537 | . 9 14 77 . 8437 Game ------ Seed ServoRainbowObliterator Manual? 0 Play Time 02:46:26 Cumulative 197.8 hours Start 2025.06.18 @ 16:40:35 End 2025.06.18 @ 19:34:58 Sessions 1 Manual Loads 0 Difficulty Adventurer Special Mode Winter2019/RPGLIKE Game No. 45 Rogue 12 Adventurer 2 Explorer 31 Win Type - Total 4 Types 2/0/2/0/0/0/0/0/0/0 Lore% 52 Gallery% 63 Achievement% 70 Wizard Run 0 Options --------- Layout 0 ASCII 0 Keyboard 0 Movement Mouse Keybinds 0 Fullscreen 2 Font 24/Smallcaps Map View 76x50 Zoom Use 0% Tactical HUD 1 Map Filters NONE Filters NONE Steam 1 RUN: 18a27999-2c34-41a5-a871-65434b95b591